bitfinex-derivatives/quotes_SOLF0:USTF0_20251108
["timestamp","ask_amount","ask_price","bid_price","bid_amount"]
[1762574434548,0.04714563,162.8,162.78,5.5323]
[1762574435459,3.11714563,162.8,162.78,5.5323]
[1762574441968,3.11714563,162.8,162.77,0.04118233]
[1762574443171,3.11714563,162.8,162.77,3.16118233]
[1762574444670,3.11714563,162.8,162.77,8.69388233]
[1762574445867,0.04714563,162.8,162.78,8.6523]
[1762574447770,2.96714563,162.8,162.78,8.6523]
[1762574449976,0.04714563,162.8,162.78,8.6523]
[1762574450271,0.04714563,162.8,162.79,3.12]
[1762574451375,2.92,162.86,162.82,3.12]
[1762574451675,2.92,162.89,162.82,3.12]
[1762574452173,0.04599213,162.87,162.85,3.12]
[1762574452973,0.04599213,162.87,162.86,8.6496]
[1762574455475,4.6953673,162.95,162.91,3.12]
[1762574455678,2.92,162.95,162.91,3.12]
[1762574455977,4.6953673,162.97,162.91,3.12]
[1762574456168,2.92,162.97,162.91,3.12]
[1762574456367,0.0395731,162.96,162.92,3.16207587]
[1762574456565,2.9595731,162.96,162.92,3.16207587]
[1762574459585,0.0395731,162.96,162.92,3.16207587]
[1762574459790,2.9595731,162.96,162.92,3.16207587]
[1762574459977,2.9595731,162.96,162.92,8.68957587]
[1762574460377,2.9595731,162.96,162.93,3.12]
[1762574462580,2.9595731,162.96,162.94,5.5268]
[1762574463187,0.0395731,162.96,162.95,2.93]
[1762574463794,3.1595731,162.96,162.92,0.04207587]
[1762574464091,3.1595731,162.96,162.92,2.97207587]
[1762574465089,3.12,162.95,162.92,0.04207587]
[1762574468186,3.12,162.95,162.92,2.97207587]
[1762574468489,0.0395731,162.96,162.92,2.97207587]
[1762574468686,0.0395731,162.96,162.94,5.5269]
[1762574468887,0.0395731,162.96,162.95,2.93]
[1762574469190,3.12,163.01,162.95,2.93]
[1762574469383,3.12,163.01,162.98,8.4554]
[1762574469583,3.12,163.03,162.98,2.93]
[1762574470192,0.0400657,163.02,162.99,2.96938317]
[1762574471789,0.0400657,163.02,163.01,2.93]
[1762574472092,3.1600657,163.02,163.0,5.5249]
[1762574473396,3.1600657,163.02,162.99,2.96938317]
[1762574473792,3.1600657,163.02,162.99,0.03938317]
[1762574475397,3.1600657,163.02,162.99,2.96938317]
[1762574475897,0.0400657,163.02,162.99,2.96938317]
[1762574476097,0.0400657,163.02,163.01,2.93]
[1762574478992,0.0400657,163.02,162.99,2.96938317]
[1762574479492,3.1600657,163.02,162.99,8.49458317]
[1762574479694,3.1600657,163.02,162.99,0.03938317]
[1762574482004,3.12,163.0,162.93,2.93]
[1762574483000,3.12,162.97,162.95,0.0403376]
[1762574485201,3.12,162.96,162.95,0.0403376]
[1762574485692,3.12,162.95,162.9,5.5282]
[1762574485897,3.12,162.95,162.88,5.5288]
[1762574486588,3.12,162.92,162.9,0.04724502]
[1762574488592,3.12,162.91,162.84,2.93]
[1762574488788,3.12,162.91,162.81,273.37608353]
[1762574489593,3.12,162.87,162.84,0.04485768]
[1762574489802,3.12,162.87,162.84,0.03881794]
[1762574492697,2.9,162.85,162.84,0.03881794]
[1762574494203,2.94439322,162.88,162.84,3.17881794]
[1762574494402,2.94439322,162.88,162.84,0.03881794]
[1762574494804,2.9,162.85,162.84,0.03881794]
[1762574496407,2.9,162.87,162.84,0.03881794]
[1762574496708,2.94439322,162.88,162.84,3.17881794]
[1762574498412,0.04439322,162.88,162.84,3.17881794]
[1762574498707,2.94439322,162.88,162.84,8.70911794]
[1762574499407,2.94439322,162.88,162.85,3.14]
[1762574501615,2.94439322,162.88,162.84,0.03881794]
[1762574501812,2.94439322,162.88,162.84,2.87881794]
[1762574502313,8.47359322,162.88,162.84,2.87881794]
[1762574502814,2.94439322,162.88,162.84,2.87881794]
[1762574504920,0.04439322,162.88,162.85,2.84]
[1762574505114,3.01439322,162.88,162.85,2.84]
[1762574505312,8.54359322,162.88,162.84,0.03881794]
[1762574505514,2.97,162.87,162.84,0.03881794]
[1762574505818,2.97,162.87,162.84,2.87881794]
[1762574507924,2.97,162.87,162.84,0.03881794]
[1762574508321,2.97,162.87,162.84,2.87881794]
[1762574510228,0.04439322,162.88,162.84,2.87881794]
[1762574510523,3.01439322,162.88,162.84,2.87881794]
[1762574511321,3.01439322,162.88,162.84,0.03881794]
[1762574511929,2.97,162.86,162.84,0.03881794]
[1762574513115,3.01439322,162.88,162.84,2.87881794]
[1762574514028,2.97,162.87,162.84,2.87881794]
[1762574515031,3.01439322,162.88,162.84,2.87881794]
[1762574515530,3.01439322,162.88,162.85,2.84]
[1762574515726,8.54369322,162.88,162.84,0.03881794]
[1762574515922,3.01439322,162.88,162.84,0.03881794]
[1762574516427,2.97,162.85,162.84,0.03881794]
[1762574517330,2.97,162.87,162.84,0.03881794]
[1762574517921,2.97,162.87,162.84,8.40921794]
[1762574518324,3.01439322,162.88,162.85,2.84]
[1762574519022,8.54349322,162.88,162.85,2.84]
[1762574520633,8.4996,162.87,162.84,2.87881794]
[1762574522737,2.95,162.86,162.84,0.03881794]
[1762574527438,2.99439322,162.88,162.84,3.02881794]
[1762574527648,0.04439322,162.88,162.84,3.02881794]
[1762574527844,2.99439322,162.88,162.84,3.02881794]
[1762574529048,0.04439322,162.88,162.85,2.99]
[1762574529340,0.04439322,162.88,162.87,2.99]
[1762574529545,8.52478889,162.97,162.87,2.99]
[1762574529749,2.95,162.97,162.87,2.99]
[1762574530545,2.95,162.97,162.86,10.41812697]
[1762574530546,0.04040519,162.94,162.91,2.99]
[1762574530942,0.04040519,162.94,162.91,8.518]
[1762574533137,0.04040519,162.94,162.93,2.99]
[1762574535337,2.99040519,162.94,162.9,0.04285469]
[1762574535748,2.99040519,162.94,162.9,3.03285469]
[1762574539647,0.04040519,162.94,162.9,3.03285469]
[1762574539850,0.04040519,162.94,162.9,8.56105469]
[1762574540052,0.04040519,162.94,162.91,2.99]
[1762574541044,0.04040519,162.94,162.93,2.99]
[1762574542667,2.99040519,162.94,162.91,2.99]
[1762574542860,2.99040519,162.94,162.9,0.04285469]
[1762574543467,2.99040519,162.94,162.9,3.03285469]
[1762574544663,0.04040519,162.94,162.91,2.99]
[1762574545567,0.04040519,162.94,162.93,2.99]
[1762574546263,0.04040519,162.94,162.91,2.99]
[1762574547573,18.76435341,163.03,162.91,8.5179]
[1762574547862,1.76915933,162.98,162.91,8.5179]
[1762574548067,1.76915933,162.98,162.92,2.99]
[1762574548262,7.29515933,162.98,162.92,8.5175]
[1762574548663,0.03954644,162.97,162.93,3.03101339]
[1762574548863,0.03954644,162.97,162.93,3.02884552]
[1762574549061,0.03954644,162.97,162.93,0.03884552]
[1762574549660,2.95,162.96,162.93,0.03884552]
[1762574550475,8.4765,162.96,162.93,0.03884552]
[1762574550670,0.03954644,162.97,162.93,0.03884552]
[1762574550671,0.03954644,162.97,162.96,2.99]
[1762574551074,2.95,163.04,163.0,2.99]
[1762574551975,2.99587796,163.04,163.0,3.03714827]
[1762574553068,2.99587796,163.04,163.0,8.56204827]
[1762574553466,2.99587796,163.04,163.0,3.03714827]
[1762574553773,2.99587796,163.04,163.01,2.95]
[1762574555178,2.99587796,163.04,163.0,0.04714827]
[1762574556477,2.98,163.01,163.0,0.04714827]
[1762574557067,0.04587796,163.04,162.93,2.95]
[1762574557068,2.98,162.98,162.93,4.71915933]
[1762574557271,2.98,162.98,162.94,2.95]
[1762574558077,8.54521658,162.98,162.94,2.98903646]
[1762574558273,2.98,162.97,162.94,2.98903646]
[1762574559272,8.5062,162.97,162.94,2.98903646]
[1762574560083,2.98,162.95,162.94,0.03903646]
[1762574562184,2.98,162.97,162.94,3.09903646]
[1762574562480,2.98,162.97,162.94,0.03903646]
[1762574563079,2.98,162.97,162.94,3.09903646]
[1762574563277,0.03931658,162.98,162.96,3.06]
[1762574563870,0.03931658,162.98,162.96,8.586]
[1762574564075,0.03931658,162.98,162.97,3.06]
[1762574565580,3.01931658,162.98,162.94,5.56593646]
[1762574565986,3.01931658,162.98,162.94,0.03903646]
[1762574566178,3.01931658,162.98,162.94,3.09903646]
[1762574566689,2.98,162.97,162.94,0.03903646]
[1762574567073,8.5062,162.97,162.94,0.03903646]
[1762574567276,2.98,162.96,162.94,0.03903646]
[1762574567984,2.98,162.95,162.94,0.03903646]
[1762574568176,2.98,162.95,162.85,4.82915933]
[1762574568382,2.98,162.93,162.86,3.06]
[1762574569183,0.04446407,162.91,162.88,3.10638557]
[1762574571289,0.04446407,162.91,162.9,3.06]
[1762574577988,2.98,163.0,162.93,3.06]
[1762574578191,2.98,163.04,162.95,1.76915933]
[1762574578489,2.98,163.04,162.97,5.526]
[1762574578688,2.98,163.04,162.97,8.586]
[1762574578689,2.98,163.03,162.97,8.586]
[1762574579191,3.02361487,163.02,162.98,3.10193123]
[1762574580692,0.04361487,163.02,162.99,1.76915933]
[1762574580892,0.04361487,163.02,163.0,3.06]
[1762574581288,0.04361487,163.02,162.98,0.04193123]
[1762574581289,3.02361487,163.02,162.98,3.10193123]
[1762574581696,3.02361487,163.02,162.98,0.04193123]
[1762574581989,2.98,163.0,162.98,0.04193123]
[1762574583195,3.02361487,163.02,162.98,2.95193123]
[1762574585787,2.98,163.0,162.98,0.04193123]
[1762574586500,2.98,162.99,162.98,0.04193123]
[1762574586904,2.98,162.99,162.92,2.91]
[1762574587799,0.043545,162.97,162.94,0.03925372]
[1762574588102,3.023545,162.97,162.94,0.03925372]
[1762574589600,8.549745,162.97,162.94,0.03925372]
[1762574589800,2.98,162.96,162.94,0.03925372]
[1762574591112,0.043545,162.97,162.94,2.94925372]
[1762574592001,0.043545,162.97,162.95,2.91]
[1762574593701,2.98,163.07,162.96,2.91]
[1762574594606,2.98,163.07,163.0,0.04215308]
[1762574594607,0.04683666,163.03,163.0,0.04215308]
[1762574594809,0.04683666,163.03,163.01,8.4346]
[1762574594993,0.04683666,163.03,163.02,2.91]
[1762574595493,0.04683666,163.03,163.0,2.95215308]
[1762574596600,3.02683666,163.03,163.0,2.95215308]
[1762574596801,3.02683666,163.03,163.0,0.04215308]
[1762574598908,0.04683666,163.03,163.0,2.95215308]
[1762574601705,0.04683666,163.03,163.01,2.91]
[1762574602514,0.04683666,163.03,163.02,2.91]
[1762574603900,2.98,163.14,163.04,2.91]
[1762574604809,3.02271421,163.11,163.07,2.94908513]
[1762574608214,3.02271421,163.11,163.07,0.03908513]
[1762574608215,2.98,163.09,163.07,0.03908513]
[1762574608417,3.02271421,163.11,163.07,2.94908513]
[1762574608715,0.04271421,163.11,163.07,2.94908513]
[1762574609213,0.04271421,163.11,163.08,2.91]
[1762574612815,419.0,163.19,163.07,5.56148513]
[1762574612816,5.518,163.21,163.1,2.96]
[1762574613016,81.52,163.23,163.1,2.96]
[1762574614018,0.0468828,163.18,163.16,8.4793]
[1762574614220,0.0468828,163.18,163.17,2.96]
[1762574615917,0.0468828,163.18,163.15,0.04040326]
[1762574616122,0.0468828,163.18,163.15,3.00040326]
[1762574616925,3.0268828,163.18,163.15,0.04040326]
[1762574617726,3.0268828,163.18,163.07,2.96]
[1762574617727,2.98,163.15,163.07,2.96]
[1762574618223,8.5008,163.13,163.07,2.96]
[1762574618420,2.98,163.13,163.07,2.96]
[1762574618621,2.98,163.11,163.08,0.04425085]
[1762574618827,0.04001585,163.11,163.08,0.04717984]
[1762574619324,0.04001585,163.11,163.08,3.00717984]
[1762574619523,3.02001585,163.11,163.08,0.04717984]
[1762574620229,8.54151585,163.11,163.08,0.04717984]
[1762574620720,2.98,163.1,163.08,0.04717984]
[1762574623420,2.85,163.09,163.08,0.04717984]
[1762574626424,0.04001585,163.11,163.08,3.07717984]
[1762574630536,0.04001585,163.11,163.09,3.03]
[1762574631332,0.04001585,163.11,163.09,8.5518]
[1762574631632,0.04001585,163.11,163.1,3.03]
[1762574633035,2.89001585,163.11,163.08,3.07717984]
[1762574633237,0.04001585,163.11,163.08,3.07717984]
[1762574633531,2.89001585,163.11,163.08,0.04717984]
[1762574634126,0.04001585,163.11,163.08,3.07717984]
[1762574635540,2.89001585,163.11,163.08,3.07717984]
[1762574635739,0.04001585,163.11,163.08,3.07717984]
[1762574638656,8.41141585,163.11,163.08,0.04717984]
[1762574638853,2.85,163.1,163.08,0.04717984]
[1762574639253,5.56141585,163.11,163.08,0.04717984]
[1762574639753,0.04001585,163.11,163.08,3.07717984]
[1762574640657,2.89001585,163.11,163.08,0.04717984]
[1762574641655,8.41151585,163.11,163.08,0.04717984]
[1762574641854,2.89001585,163.11,163.08,0.04717984]
[1762574642050,0.04001585,163.11,163.08,3.07717984]
[1762574643051,0.04001585,163.11,163.08,8.59937984]
[1762574643251,0.04001585,163.11,163.09,2.88]
[1762574645157,3.01001585,163.11,163.08,0.04717984]
[1762574645356,3.01001585,163.11,163.08,2.92717984]
[1762574645752,0.04001585,163.11,163.08,2.92717984]
[1762574647160,0.04001585,163.11,163.09,2.88]
[1762574647655,0.04001585,163.11,163.09,8.4018]
[1762574647856,0.04001585,163.11,163.1,2.88]
[1762574648053,0.04001585,163.11,163.08,0.04717984]
[1762574648257,2.97,163.09,163.08,0.04717984]
[1762574649851,2.97,163.07,163.0,2.88]
[1762574650853,0.04514508,163.05,163.02,2.92282421]
[1762574651263,3.01514508,163.05,163.02,0.04282421]
[1762574651866,8.53864508,163.05,163.02,0.04282421]
[1762574652059,2.97,163.04,163.02,0.04282421]
[1762574653058,2.97,163.03,162.96,2.88]
[1762574653761,5.5245,163.02,162.96,8.4062]
[1762574653961,8.4945,163.02,162.96,8.4062]
[1762574654261,3.01047076,163.01,162.97,0.04525172]
[1762574654866,0.04047076,163.01,162.98,8.4057]
[1762574655162,0.04047076,163.01,162.98,2.88]
[1762574656162,3.01047076,163.01,162.97,0.04525172]
[1762574656364,3.01047076,163.01,162.97,2.92525172]
[1762574657261,3.01047076,163.01,162.97,0.04525172]
[1762574657660,2.97,162.98,162.91,2.88]
[1762574658165,2.97,162.98,162.84,2.88]
[1762574658667,0.04655555,162.93,162.89,2.92699894]
[1762574658868,0.03872019,162.93,162.89,2.92410804]
[1762574659962,0.03872019,162.93,162.9,2.88]
[1762574662573,0.03872019,162.93,162.91,2.88]
[1762574663275,0.03872019,162.93,162.92,8.4077]
[1762574665476,5.5249,163.01,162.95,2.88]
[1762574665677,2.97,163.02,162.95,2.88]
[1762574666565,0.04246156,163.0,162.97,0.04586335]
[1762574666973,0.04246156,163.0,162.97,2.92586335]
[1762574667383,3.01246156,163.0,162.97,0.04586335]
[1762574668879,0.04246156,163.0,162.97,2.92586335]
[1762574669178,3.01246156,163.0,162.97,2.92586335]
[1762574670273,0.04246156,163.0,162.97,2.92586335]
[1762574672980,0.04246156,163.0,162.98,5.5255]
[1762574673182,0.04246156,163.0,162.98,8.5555]
[1762574673377,0.04246156,163.0,162.99,3.03]
[1762574675079,8.4831,163.06,163.0,8.5549]
[1762574675282,2.96,163.06,163.01,3.03]
[1762574676185,0.04333398,163.05,163.02,3.07034626]
[1762574676479,0.04333398,163.05,163.02,8.59444626]
[1762574676677,0.04333398,163.05,163.03,3.03]
[1762574677589,0.04333398,163.05,163.04,3.03]
[1762574682681,2.96,163.12,163.06,8.4029]
[1762574683687,0.04672798,163.11,163.08,2.88]
[1762574683886,0.0452229,163.11,163.08,2.91869402]
[1762574684189,3.0152229,163.11,163.08,0.03869402]
[1762574684781,3.0152229,163.11,163.08,2.91869402]
[1762574685881,0.0452229,163.11,163.08,8.44089402]
[1762574686087,0.0452229,163.11,163.09,2.88]
[1762574686789,0.0452229,163.11,163.1,2.88]
[1762574688085,3.0152229,163.11,163.08,0.03869402]
[1762574692991,0.0452229,163.11,163.08,2.91869402]
[1762574693991,3.0152229,163.11,163.08,0.03869402]
[1762574694694,3.0152229,163.11,163.08,2.91869402]
[1762574695792,3.0152229,163.11,163.08,0.03869402]
[1762574696690,2.97,163.1,163.08,0.03869402]
[1762574701196,2.97,163.09,163.02,8.4041]
[1762574701590,8.4922,163.09,163.03,5.5239]
[1762574701900,2.97,163.07,162.99,4.6457726]
[1762574702398,2.9843063,163.05,163.01,3.12581912]
[1762574702901,2.9843063,163.05,163.01,0.04581912]
[1762574703202,2.9843063,163.05,163.01,3.12581912]
[1762574704103,2.9843063,163.05,163.03,8.6039]
[1762574704104,0.0443063,163.05,163.03,8.6039]
[1762574704301,0.0443063,163.05,163.03,3.08]
[1762574705302,2.9843063,163.05,163.01,3.12581912]
[1762574711309,2.94,163.04,163.01,0.04581912]
[1762574712107,2.94,163.02,163.01,0.04581912]
[1762574717812,2.94,162.99,162.94,5.5269]
[1762574717999,2.94,162.99,162.94,8.6069]
[1762574718709,2.94,162.98,162.91,3.08]
[1762574719011,2.98329736,162.96,162.93,0.04394298]
[1762574719212,2.98204356,162.96,162.93,0.04385889]
[1762574719412,2.98204356,162.96,162.88,3.08]
[1762574719912,2.94,162.92,162.88,3.08]
[1762574720314,2.94,162.92,162.88,3.11943303]
[1762574720315,2.98648028,162.92,162.88,3.11943303]
[1762574722413,0.04648028,162.92,162.89,3.08]
[1762574723016,2.94,163.02,162.91,3.08]
[1762574723812,2.76316419,163.05,162.91,3.08]
[1762574723813,2.94,163.0,162.93,5.5273]
[1762574724016,2.98704012,162.98,162.95,0.04279801]
[1762574724213,2.98466142,162.98,162.95,0.03948596]
[1762574725013,2.98466142,162.98,162.96,3.08]
[1762574725014,0.04466142,162.98,162.96,3.08]
[1762574725511,0.04466142,162.98,162.96,8.6062]
[1762574725716,0.04466142,162.98,162.95,0.03948596]
[1762574725717,2.94,163.05,162.97,3.08]
[1762574726112,5.5239,163.04,162.97,3.08]
[1762574726318,2.94,163.03,162.97,3.08]
[1762574726615,0.04003011,163.02,162.99,3.08]
[1762574726823,0.04003011,163.02,162.99,3.12575328]
[1762574729723,0.04003011,163.02,163.0,3.08]
[1762574732630,0.04003011,163.02,163.01,2.85]
[1762574733128,2.98,163.1,163.04,2.85]
[1762574734024,18.43,163.14,163.05,2.85]
[1762574734331,0.04350753,163.11,163.08,2.89372833]
[1762574740828,0.04350753,163.11,163.08,8.41592833]
[1762574741036,0.04350753,163.11,163.09,2.85]
[1762574741537,0.04350753,163.11,163.09,8.3718]
[1762574741834,0.04350753,163.11,163.1,3.06]
[1762574742929,0.04350753,163.11,163.08,3.10372833]
[1762574743129,3.01350753,163.11,163.08,0.04372833]
[1762574744332,3.01350753,163.11,163.08,3.10372833]
[1762574745733,0.04350753,163.11,163.08,3.10372833]
[1762574754446,3.01350753,163.11,163.08,0.04372833]
[1762574755444,0.04350753,163.11,163.08,3.10372833]
[1762574756243,3.01350753,163.11,163.08,3.10372833]
[1762574757044,8.53500753,163.11,163.08,3.10372833]
[1762574757937,8.53500753,163.11,163.08,0.04372833]
[1762574757938,2.97,163.09,163.08,0.04372833]
[1762574758440,5.5218,163.1,163.08,0.04372833]
[1762574759233,8.4918,163.1,163.08,0.04372833]
[1762574759844,2.97,163.09,163.08,0.04372833]
[1762574760050,2.97,163.06,163.02,3.06]
[1762574760548,8.4931,163.06,163.02,3.06]
[1762574760945,8.53489451,163.06,163.02,3.1065255]
[1762574761541,0.04179451,163.06,163.02,3.1065255]
[1762574762240,3.02179451,163.06,163.02,3.1065255]
[1762574762845,3.02179451,163.06,163.02,0.0465255]
[1762574764150,3.02179451,163.06,163.02,3.0665255]
[1762574764348,0.04179451,163.06,163.02,3.0665255]
[1762574765444,3.02179451,163.06,163.02,3.0665255]
[1762574766645,2.98,163.04,163.02,0.0465255]
[1762574767250,2.98,163.03,163.02,0.0465255]
[1762574768046,8.54499451,163.06,163.02,3.0665255]
[1762574768357,2.98,163.05,163.02,0.0465255]
[1762574769153,0.04179451,163.06,163.02,3.0665255]
[1762574772246,3.02179451,163.06,163.02,3.0665255]
[1762574772842,2.98,163.04,163.02,0.0465255]
[1762574773555,2.98,163.05,163.02,0.0465255]
[1762574774648,8.5035,163.05,163.02,0.0465255]
[1762574775042,2.98,163.04,163.02,0.0465255]
[1762574775251,8.5038,163.04,163.02,0.0465255]
[1762574775548,2.98,163.03,163.02,0.0465255]
[1762574777259,5.5238,163.04,163.02,0.0465255]
[1762574777457,8.5038,163.04,163.02,0.0465255]
[1762574777764,5.5238,163.04,163.02,0.0465255]
[1762574778067,0.04179451,163.06,163.02,3.0665255]
[1762574779949,4.78840226,163.06,163.02,3.0665255]
[1762574781057,10.31150226,163.06,163.02,3.0665255]
[1762574783863,4.78840226,163.06,163.02,3.0665255]
[1762574785153,2.98,163.05,163.02,0.0465255]
[1762574785353,2.98,163.02,162.96,3.02]
[1762574785553,4.74660775,163.0,162.96,3.02]
[1762574786457,4.78592548,163.0,162.96,3.06020164]
[1762574787060,2.98,162.99,162.96,0.04020164]
[1762574787368,4.74660775,162.97,162.96,0.04020164]
[1762574790062,5.5268,162.95,162.89,3.02]
[1762574790267,8.5068,162.95,162.89,3.02]
[1762574791166,1.81100735,162.94,162.9,3.0635134]
[1762574791661,2.98,162.93,162.9,0.0435134]
[1762574793067,8.5076,162.93,162.9,0.0435134]
[1762574793362,2.96,162.92,162.9,0.0435134]
[1762574793563,4.72660775,162.91,162.9,0.0435134]
[1762574795864,5.5285,162.9,162.84,3.0]
[1762574796174,4.72660775,162.89,162.84,3.0]
[1762574796870,0.04118531,162.88,162.85,3.04618973]
[1762574800074,2.96,162.86,162.85,0.04618973]
[1762574800970,2.96,162.86,162.74,3.0]
[1762574801170,1.76660775,162.83,162.78,3.0]
[1762574801365,5.5306,162.84,162.78,3.0]
[1762574801570,8.4906,162.84,162.78,3.0]
[1762574802077,0.0395879,162.83,162.8,2.87]
[1762574802779,8.4304879,162.83,162.79,0.04133243]
[1762574802980,2.8995879,162.83,162.79,2.91133243]
[1762574806771,2.8995879,162.83,162.79,0.04133243]
[1762574807476,2.86,162.8,162.79,0.04133243]
[1762574809980,2.86,162.82,162.79,0.04133243]
[1762574811175,2.86,162.81,162.68,2.87]
[1762574811786,8.3929,162.77,162.69,2.87]
[1762574812183,0.04192334,162.75,162.72,2.87]
[1762574812383,0.04312002,162.75,162.72,2.87]
[1762574812687,0.04312002,162.75,162.71,0.04552522]
[1762574812688,2.86,162.74,162.71,0.04552522]
[1762574812985,0.04312002,162.75,162.71,2.91552522]
[1762574815590,2.86,162.74,162.71,0.04552522]
[1762574816093,2.86,162.74,162.71,2.91552522]
[1762574817093,8.394,162.74,162.71,2.91552522]
[1762574818994,2.86,162.73,162.71,0.04552522]
[1762574819890,2.86,162.72,162.71,0.04552522]
[1762574821593,0.04312002,162.75,162.71,2.91552522]
[1762574822187,0.04312002,162.75,162.74,2.87]
[1762574825496,1.77260981,162.82,162.75,2.89]
[1762574826095,1.77260981,162.85,162.79,2.89]
[1762574826396,0.04388796,162.84,162.8,2.93707528]
[1762574826701,0.04246468,162.84,162.8,2.93707528]
[1762574827094,0.04246468,162.84,162.81,2.89]
[1762574828010,0.04246468,162.84,162.81,8.4213]
[1762574828305,0.04246468,162.84,162.82,2.89]
[1762574828810,0.04246468,162.84,162.82,8.4209]
[1762574829003,0.04246468,162.84,162.83,2.89]
[1762574829507,3.02246468,162.84,162.8,2.93707528]
[1762574829909,3.02246468,162.84,162.8,0.04707528]
[1762574830115,2.98,162.81,162.8,0.04707528]
[1762574830316,2.98,162.81,162.74,2.89]
[1762574830517,8.5116,162.81,162.74,8.4237]
[1762574831307,18.42,162.89,162.76,0.04063259]
[1762574831308,4.79420528,162.79,162.76,0.04063259]
[1762574831509,4.79394108,162.79,162.76,0.04638923]
[1762574831810,2.98,162.78,162.76,0.04638923]
[1762574833211,8.5127,162.78,162.76,0.04638923]
[1762574833411,2.98,162.77,162.76,0.04638923]
[1762574834917,3.02133127,162.79,162.76,0.04638923]
[1762574837106,0.04133127,162.79,162.76,2.93638923]
[1762574837707,3.02133127,162.79,162.76,0.04638923]
[1762574838619,0.04133127,162.79,162.76,2.93638923]
[1762574843625,0.04133127,162.79,162.77,5.5326]
[1762574843833,2.98,162.86,162.78,2.89]
[1762574844023,7.20285969,162.9,162.78,2.89]
[1762574844323,2.98,162.88,162.78,2.89]
[1762574844916,0.04354659,162.85,162.81,2.93685708]
[1762574845117,0.04354659,162.85,162.82,2.89]
[1762574845623,0.04354659,162.85,162.81,0.04685708]
[1762574845624,3.02354659,162.85,162.81,0.04685708]
[1762574846110,3.02354659,162.85,162.81,2.93685708]
[1762574846111,8.55394659,162.85,162.81,2.93685708]
[1762574846822,8.5108,162.83,162.81,0.04685708]
[1762574847027,5.5308,162.83,162.81,0.04685708]
[1762574847324,8.5108,162.83,162.81,0.04685708]
[1762574847928,2.98,162.82,162.81,0.04685708]
[1762574848820,5.5308,162.83,162.81,0.04685708]
[1762574849132,8.5108,162.83,162.81,0.04685708]
[1762574849931,5.5308,162.83,162.81,0.04685708]
[1762574850532,2.98,162.84,162.81,0.04685708]
[1762574852029,8.5106,162.84,162.81,0.04685708]
[1762574852729,2.98,162.84,162.81,0.04685708]
[1762574852937,3.02354659,162.85,162.81,3.01685708]
[1762574853129,3.02354659,162.85,162.81,0.04685708]
[1762574853928,8.55384659,162.85,162.81,0.04685708]
[1762574854133,2.98,162.84,162.81,0.04685708]
[1762574854341,5.57384659,162.85,162.81,3.01685708]
[1762574854532,2.98,162.84,162.81,3.01685708]
[1762574854727,8.5106,162.84,162.81,0.04685708]
[1762574857240,2.98,162.82,162.81,0.04685708]
[1762574858427,5.5316,162.81,162.76,2.97]
[1762574858634,8.5116,162.81,162.76,2.97]
[1762574858935,2.98,162.81,162.76,2.97]
[1762574859327,0.04097263,162.8,162.77,3.01241813]
[1762574861937,0.04097263,162.8,162.77,8.54511813]
[1762574862245,0.04097263,162.8,162.78,2.98]
[1762574863039,0.04097263,162.8,162.78,8.5124]
[1762574863438,0.04097263,162.8,162.78,2.98]
[1762574865944,0.04097263,162.8,162.79,2.98]
[1762574867448,2.97,162.88,162.81,8.5112]
[1762574867947,8.4996,162.87,162.81,8.5112]
[1762574868151,2.97,162.86,162.82,8.511]
[1762574868338,2.97,162.86,162.83,2.98]
[1762574868545,3.01309745,162.86,162.83,3.01946825]
[1762574870049,0.04309745,162.86,162.83,3.01946825]
[1762574872054,0.04309745,162.86,162.85,2.98]
[1762574875954,0.04309745,162.86,162.83,0.03946825]
[1762574875955,3.01309745,162.86,162.83,0.03946825]
[1762574876254,3.01309745,162.86,162.83,3.01946825]
[1762574876448,0.04309745,162.86,162.83,3.01946825]
[1762574877250,0.04309745,162.86,162.85,2.98]
[1762574882158,5.73648993,162.94,162.85,2.98]
[1762574883050,5.73648993,162.94,162.88,2.91917909]
[1762574883051,0.04098727,162.91,162.88,2.91917909]